Cogmind - Beta 16 @@@ ROGUE MODE // 2026.02.01 @ 01:15:23 Player: Artackni Result: Destroyed by S-27 Virus with Autogun Performance ------------- Evolutions (6) 3000 Regions Visited (14) 2800 Robots Destroyed (0) 0 Value Destroyed (0) 0 Prototype IDs (0) 0 Alien Tech Used (0) 0 Bonus (4240) 4240 TOTAL SCORE: 10040 Bonus ------- Pacifist 2680 Follower Combat Kills 60 Entered Garrisons 200 Entered DSFs 1000 Aligned with FarCom 300 Cogmind --------- Core Integrity 0/1150 Matter 295/300 Energy 99/100 System Corruption 2% Temperature Cool (0) Movement Core (50) Location -4/Factory Parts ------- > --- POWER (13) ------- (None) > --- PROPULSION (2) --- (None) > --- UTILITY (2) ------ (None) > --- WEAPON (2) ------- (None) > --- INVENTORY (5) ---- (None) Peak State ------------ None Favorites ----------- Power None Propulsion None Utility None Weapon None Build | -11 -10 -10 -10 -9 -8 -8 -7 -7 -6 -6 -6 -5 -5 -4 ------- Run | Yrd Mat Min Exi Min Mat Gar Fac DSF Fac Low Low Fac DSF Fac Slots Evolved 12 | . . . . . 4 . 2 . 2 . . 2 . 2 Power 12 | . . . . . 4 . 2 . 2 . . 2 . 2 Propulsion . | . . . . . . . . . . . . . . . Utility . | . . . . . . . . . . . . . . . Weapon . | . . . . . . . . . . . . . . . Parts Attached . | . . . . . . . . . . . . . . . Power . | . . . . . . . . . . . . . . . Engine . | . . . . . . . . . . . . . . . Core . | . . . . . . . . . . . . . . . Reactor . | . . . . . . . . . . . . . . . Propulsion . | . . . . . . . . . . . . . . . Treads . | . . . . . . . . . . . . . . . Leg . | . . . . . . . . . . . . . . . Wheel . | . . . . . . . . . . . . . . . Hover . | . . . . . . . . . . . . . . . Flight . | . . . . . . . . . . . . . . . Utility . | . . . . . . . . . . . . . . . Device . | . . . . . . . . . . . . . . . Storage . | . . . . . . . . . . . . . . . Processor . | . . . . . . . . . . . . . . . Hackware . | . . . . . . . . . . . . . . . Protection . | . . . . . . . . . . . . . . . Artifact . | . . . . . . . . . . . . . . . Weapon . | . . . . . . . . . . . . . . . Energy Gun . | . . . . . . . . . . . . . . . Energy Cannon . | . . . . . . . . . . . . . . . Ballistic Gun . | . . . . . . . . . . . . . . . Ballistic Cannon . | . . . . . . . . . . . . . . . Launcher . | . . . . . . . . . . . . . . . Special Weapon . | . . . . . . . . . . . . . . . Impact Weapon . | . . . . . . . . . . . . . . . Slashing Weapon . | . . . . . . . . . . . . . . . Piercing Weapon . | . . . . . . . . . . . . . . . Special Melee Weapon . | . . . . . . . . . . . . . . . Unidentified Prototypes . | . . . . . . . . . . . . . . . Parts Lost . | . . . . . . . . . . . . . . . Power . | . . . . . . . . . . . . . . . Propulsion . | . . . . . . . . . . . . . . . Utility . | . . . . . . . . . . . . . . . Weapon . | . . . . . . . . . . . . . . . Highest Loss Streak . | . . . . . . . . . . . . . . . To Critical Strikes . | . . . . . . . . . . . . . . . Average Backups . | . . . . . . . . . . . . . . . Power . | . . . . . . . . . . . . . . . Propulsion . | . . . . . . . . . . . . . . . Utility . | . . . . . . . . . . . . . . . Weapon . | . . . . . . . . . . . . . . . Tool/Special . | . . . . . . . . . . . . . . . Unused Backups . | . . . . . . . . . . . . . . . Power . | . . . . . . . . . . . . . . . Propulsion . | . . . . . . . . . . . . . . . Utility . | . . . . . . . . . . . . . . . Weapon . | . . . . . . . . . . . . . . . Tool/Special . | . . . . . . . . . . . . . . . Average Slot Usage (%) . | . . . . . . . . . . . . . . . Peak Build Rating . | . . . . . . . . . . . . . . . Average Rating . | . . . . . . . . . . . . . . . On Entrance . | . . . . . . . . . . . . . . . Avg Prop Armor Cover (%) . | . . . . . . . . . . . . . . . Naked Turns 1636 | . 95 122 80 144 106 278 4 19 143 145 94 63 15 328 Heaviest Build . | . . . . . . . . . . . . . . . Greatest Support 3 | 3 3 3 3 3 3 3 3 3 3 3 3 3 3 3 Greatest Overweight (x) . | . . . . . . . . . . . . . . . Average Overweight (x) . | . . . . . . . . . . . . . . . Largest Inventory Capacity 5 | 5 5 5 5 5 5 5 5 5 5 5 5 5 5 5 Average Capacity 5 | 5 5 5 5 5 5 5 5 5 5 5 5 5 5 5 Most Carried . | . . . . . . . . . . . . . . . Average Carried . | . . . . . . . . . . . . . . . Final Capacity 5 | 5 5 5 5 5 5 5 5 5 5 5 5 5 5 5 Final Carried . | . . . . . . . . . . . . . . . Class Distribution -------------------- 100% | Mutant Dominant Class ---------------- Mutant | -10/Materials Mutant | -10/Mines Mutant | -10/Exiles Mutant | -9/Mines Mutant | -8/Materials Mutant | -8/Garrison Mutant | -7/Factory Mutant | -7/DSF Mutant | -6/Factory Mutant | -6/Lower Caves Mutant | -6/Lower Caves Mutant | -5/Factory Mutant | -5/DSF Mutant | -4/Factory Resources | -11 -10 -10 -10 -9 -8 -8 -7 -7 -6 -6 -6 -5 -5 -4 ----------- Run | Yrd Mat Min Exi Min Mat Gar Fac DSF Fac Low Low Fac DSF Fac Matter Collected 193 | 168 . . . . . . . 25 . . . . . . Remotely . | . . . . . . . . . . . . . . . Salvage Created . | . . . . . . . . . . . . . . . Parts . | . . . . . . . . . . . . . . . Haulers Intercepted . | . . . . . . . . . . . . . . . Recyclers Shooed . | . . . . . . . . . . . . . . . Parts Field Recycled . | . . . . . . . . . . . . . . . Retrieved Matter . | . . . . . . . . . . . . . . . Parts Self-Destructed 5 | . . . . . . . . . . . 5 . . . Prevented 1 | . . . . . . . . . . . 1 . . . Parts Restored . | . . . . . . . . . . . . . . . Kills | -11 -10 -10 -10 -9 -8 -8 -7 -7 -6 -6 -6 -5 -5 -4 ------- Run | Yrd Mat Min Exi Min Mat Gar Fac DSF Fac Low Low Fac DSF Fac Combat Hostiles Destroyed . | . . . . . . . . . . . . . . . Classes Destroyed . | . . . . . . . . . . . . . . . Best Kill Streak . | . . . . . . . . . . . . . . . Combat Bots Only . | . . . . . . . . . . . . . . . Max Kills in Single Turn . | . . . . . . . . . . . . . . . Gunslinging . | . . . . . . . . . . . . . . . Exploded . | . . . . . . . . . . . . . . . Melee . | . . . . . . . . . . . . . . . Uniques/NPCs Destroyed . | . . . . . . . . . . . . . . . Combat | -11 -10 -10 -10 -9 -8 -8 -7 -7 -6 -6 -6 -5 -5 -4 -------- Run | Yrd Mat Min Exi Min Mat Gar Fac DSF Fac Low Low Fac DSF Fac Hostile Shots Fired 275 | . 8 12 . 1 13 53 . 22 24 15 18 . 1 108 Missed 124 | . 3 4 . 1 10 19 . 11 9 8 13 . . 46 Hits 151 | . 5 8 . . 3 34 . 11 15 7 5 . 1 62 Melee 3 | . . . . . . . . 3 . . . . . . Projectile 148 | . 5 8 . . 3 34 . 8 15 7 5 . 1 62 AOE 2 | . . . . . . . . 2 . . . . . . Critical Strikes 10 | . . 1 . . . 4 . 2 . . . . . 3 Damage Taken 2541 | . 46 105 . . 25 502 . 229 152 179 73 . 74 1156 Core 2541 | . 46 105 . . 25 502 . 229 152 179 73 . 74 1156 Absorbed by Shields 27 | . . . . . . 27 . . . . . . . . Core Remaining (%) 59 | 100 . . . 39 . 4 . 67 . . 52 . 92 . Volleys Fired . | . . . . . . . . . . . . . . . Largest . | . . . . . . . . . . . . . . . Hottest . | . . . . . . . . . . . . . . . Shots Fired . | . . . . . . . . . . . . . . . Gun . | . . . . . . . . . . . . . . . Cannon . | . . . . . . . . . . . . . . . Launcher . | . . . . . . . . . . . . . . . Special . | . . . . . . . . . . . . . . . Kinetic . | . . . . . . . . . . . . . . . Thermal . | . . . . . . . . . . . . . . . Explosive . | . . . . . . . . . . . . . . . Electromagnetic . | . . . . . . . . . . . . . . . Robot Hit Streak . | . . . . . . . . . . . . . . . Robot Miss Streak . | . . . . . . . . . . . . . . . Penetration Max . | . . . . . . . . . . . . . . . Secondary Targets . | . . . . . . . . . . . . . . . Shots Hit Robots . | . . . . . . . . . . . . . . . Core Hits 3 | . . . . . . . . . . . . . . 3 Critical Kills . | . . . . . . . . . . . . . . . Critical Parts Destroyed . | . . . . . . . . . . . . . . . Critical Strikes . | . . . . . . . . . . . . . . . Melee Attacks . | . . . . . . . . . . . . . . . Impact . | . . . . . . . . . . . . . . . Slashing . | . . . . . . . . . . . . . . . Piercing . | . . . . . . . . . . . . . . . Sneak Attacks . | . . . . . . . . . . . . . . . Combat Hostiles . | . . . . . . . . . . . . . . . Follow-up Attacks . | . . . . . . . . . . . . . . . Damage Inflicted 48 | . . . . . . . . . 3 . . . . 45 Guns . | . . . . . . . . . . . . . . . Cannons . | . . . . . . . . . . . . . . . Explosions . | . . . . . . . . . . . . . . . Melee . | . . . . . . . . . . . . . . . Ramming 48 | . . . . . . . . . 3 . . . . 45 Kinetic . | . . . . . . . . . . . . . . . Thermal . | . . . . . . . . . . . . . . . Explosive . | . . . . . . . . . . . . . . . Electromagnetic . | . . . . . . . . . . . . . . . Impact . | . . . . . . . . . . . . . . . Slashing . | . . . . . . . . . . . . . . . Piercing . | . . . . . . . . . . . . . . . Highest Corruption 2 | . . . . . . . . . . . . . . 2 Average Corruption 2 | . . . . . . . . . . . . . . 2 Corruption Purged . | . . . . . . . . . . . . . . . Corruption Blocked . | . . . . . . . . . . . . . . . Effects 3 | . . . . . . . . . . . . . . 3 Message Errors 2 | . . . . . . . . . . . . . . 2 Matter Fused 1 | . . . . . . . . . . . . . . 1 Overload Shots . | . . . . . . . . . . . . . . . Overflow Damage . | . . . . . . . . . . . . . . . Projectiles . | . . . . . . . . . . . . . . . Explosions . | . . . . . . . . . . . . . . . Melee . | . . . . . . . . . . . . . . . Knockbacks . | . . . . . . . . . . . . . . . Impact . | . . . . . . . . . . . . . . . Kinetic . | . . . . . . . . . . . . . . . Secondary . | . . . . . . . . . . . . . . . Self-Inflicted Damage 20 | . . . . . . . . . 1 . . . . 19 Shots . | . . . . . . . . . . . . . . . Rammed 17 | . . . . . . . . . 1 . . . . 16 Targets Rammed 17 | . . . . . . . . . 1 . . . . 16 Kicked . | . . . . . . . . . . . . . . . Crushed . | . . . . . . . . . . . . . . . Highest Temperature 5 | . . 2 . . . 5 . . . . . . . . Average Temperature 3 | . . 2 . . . 5 . . . . . . . . Received Heat Transfer 582 | . . 78 . . . 321 . . 18 36 24 . . 105 Siege Activations . | . . . . . . . . . . . . . . . Martial Activations . | . . . . . . . . . . . . . . . Shielding Activations . | . . . . . . . . . . . . . . . Robots Disrupted . | . . . . . . . . . . . . . . . Combat Hostiles . | . . . . . . . . . . . . . . . Robots Corrupted . | . . . . . . . . . . . . . . . Combat Hostiles . | . . . . . . . . . . . . . . . Parts Fried . | . . . . . . . . . . . . . . . Impact Corruptions . | . . . . . . . . . . . . . . . Robots Melted . | . . . . . . . . . . . . . . . Combat Hostiles . | . . . . . . . . . . . . . . . Parts Melted . | . . . . . . . . . . . . . . . Heat Transferred . | . . . . . . . . . . . . . . . Parts Sabotaged . | . . . . . . . . . . . . . . . Parts Stolen . | . . . . . . . . . . . . . . . Parts Stripped . | . . . . . . . . . . . . . . . Power Chain Reactions 1 | . . . . . . . . . . . . . . 1 Alert | -11 -10 -10 -10 -9 -8 -8 -7 -7 -6 -6 -6 -5 -5 -4 ------- Run | Yrd Mat Min Exi Min Mat Gar Fac DSF Fac Low Low Fac DSF Fac Maximum Alert Level . | . . . . . . . . . . . . . . . Low Security (%) 100 | 100 100 100 . 100 100 100 100 100 100 . . 100 100 100 Level 1 . | . . . . . . . . . . . . . . . Level 2 . | . . . . . . . . . . . . . . . Level 3 . | . . . . . . . . . . . . . . . Level 4 . | . . . . . . . . . . . . . . . Level 5 . | . . . . . . . . . . . . . . . High Security . | . . . . . . . . . . . . . . . Max Security . | . . . . . . . . . . . . . . . Peak Influence 132 | . 15 30 . 43 55 132 69 48 25 . . 28 3 125 Initial 69 | . . 5 . . 16 35 69 48 25 . . 28 3 1 Average 27 | . 1 4 . 2 10 71 69 48 6 . . 16 3 34 Influence Increases 595 | . 15 30 . 53 75 97 . . . . 75 5 . 245 Destroy 0b10 Robot/C 40 | . . . . 40 . . . . . . . . . . Destroy Leader 10 | . . . . 10 . . . . . . . . . . Allied During Kill 3 | . . . . 3 . . . . . . . . . . Successful Hack 12 | . . . . . . 7 . . . . . 5 . . Select Force Hacks 50 | . . . . . . . . . . . . . . 50 Partial Spotted 15 | . . . . . . . . . . . . . . 15 Lose Combat Pursuer 465 | . 15 30 . . 75 90 . . . . 75 . . 180 Influence Decreases 470 | . . 25 20 10 63 20 63 21 48 . 30 45 2 123 Entered New Map 205 | . . 10 20 . 27 20 63 21 23 . . 17 2 2 Time Decay 265 | . . 15 . 10 36 . . . 25 . 30 28 . 121 Squads Dispatched 9 | . 1 . . . 1 . . 1 . . . 1 . 5 Investigation 5 | . . . . . 1 . . . . . . 1 . 3 Extermination 1 | . . . . . . . . . . . . . . 1 Reinforcement 3 | . 1 . . . . . . 1 . . . . . 1 Assault . | . . . . . . . . . . . . . . . Garrison . | . . . . . . . . . . . . . . . Intercept . | . . . . . . . . . . . . . . . Searches Triggered . | . . . . . . . . . . . . . . . Construction Impeded . | . . . . . . . . . . . . . . . Haulers Reinforced . | . . . . . . . . . . . . . . . Active Scanning Responses . | . . . . . . . . . . . . . . . Cargo Convoy Interrupts . | . . . . . . . . . . . . . . . Stealth | -11 -10 -10 -10 -9 -8 -8 -7 -7 -6 -6 -6 -5 -5 -4 --------- Run | Yrd Mat Min Exi Min Mat Gar Fac DSF Fac Low Low Fac DSF Fac Distress Signals 1 | . 1 . . . . . . . . . . . . . Communications Jammed . | . . . . . . . . . . . . . . . Distress Signals . | . . . . . . . . . . . . . . . Times Spotted 75 | . 8 2 . 2 8 10 . 6 2 1 12 . 1 23 Peak Tracking Total 10 | . 6 2 . 2 4 10 . 5 2 1 7 . 2 10 Tactical Retreats 16 | . 1 1 . . 2 3 . . . . 3 . . 6 Traps | -11 -10 -10 -10 -9 -8 -8 -7 -7 -6 -6 -6 -5 -5 -4 ------- Run | Yrd Mat Min Exi Min Mat Gar Fac DSF Fac Low Low Fac DSF Fac Traps Triggered 8 | . . . . . 1 3 . . 1 . . . . 3 Indirectly . | . . . . . . . . . . . . . . . Trap Hack Attempts . | . . . . . . . . . . . . . . . Triggered . | . . . . . . . . . . . . . . . Disarmed . | . . . . . . . . . . . . . . . Reprogrammed . | . . . . . . . . . . . . . . . Reused . | . . . . . . . . . . . . . . . Traps Extracted . | . . . . . . . . . . . . . . . Installed . | . . . . . . . . . . . . . . . Triggered . | . . . . . . . . . . . . . . . Machines | -11 -10 -10 -10 -9 -8 -8 -7 -7 -6 -6 -6 -5 -5 -4 ---------- Run | Yrd Mat Min Exi Min Mat Gar Fac DSF Fac Low Low Fac DSF Fac Machines Disabled . | . . . . . . . . . . . . . . . Max in Single Turn . | . . . . . . . . . . . . . . . Garrison Access 1 | . . . . . . . . . . . . . . 1 Machines Repaired . | . . . . . . . . . . . . . . . Machines Dismantled . | . . . . . . . . . . . . . . . Machines Sabotaged . | . . . . . . . . . . . . . . . Overloaded Fab Kills 5 | . . . . . . . . . . . . . . 5 Hacking | -11 -10 -10 -10 -9 -8 -8 -7 -7 -6 -6 -6 -5 -5 -4 --------- Run | Yrd Mat Min Exi Min Mat Gar Fac DSF Fac Low Low Fac DSF Fac Machines Accessed 12 | . 1 . . 1 1 1 1 . 1 1 1 1 . 3 Terminals 6 | . 1 . . . . 1 1 . 1 . . 1 . 1 Fabricators 1 | . . . . . . . . . . . . . . 1 Repair Stations . | . . . . . . . . . . . . . . . Recycling Units . | . . . . . . . . . . . . . . . Scanalyzers . | . . . . . . . . . . . . . . . Garrison Access 2 | . . . . . 1 . . . . . . . . 1 Total Hacks 17 | . 1 . . 1 1 3 1 . 1 1 1 3 . 4 Successful 11 | . 1 . . 1 1 1 1 . 1 1 1 1 . 2 Failed 6 | . . . . . . 2 . . . . . 2 . 2 Catastrophic 2 | . . . . . . 1 . . . . . . . 1 Database Lockouts . | . . . . . . . . . . . . . . . Manual 2 | . 1 . . . . . . . . . . . . 1 Terminals 11 | . 1 . . . . 3 1 . 1 . . 3 . 2 Fabricators 1 | . . . . . . . . . . . . . . 1 Repair Stations . | . . . . . . . . . . . . . . . Recycling Units . | . . . . . . . . . . . . . . . Scanalyzers . | . . . . . . . . . . . . . . . Garrison Access 2 | . . . . . 1 . . . . . . . . 1 Terminal Hacks 7 | . . . . 1 . 1 1 . 1 1 1 1 . . Open Door 4 | . . . . 1 . 1 . . . 1 1 . . . Open DSF 3 | . . . . . . . 1 . 1 . . 1 . . Fabricator Hacks . | . . . . . . . . . . . . . . . Repair Station Hacks . | . . . . . . . . . . . . . . . Recycling Unit Hacks . | . . . . . . . . . . . . . . . Scanalyzer . | . . . . . . . . . . . . . . . Garrison Access Hacks 2 | . . . . . 1 . . . . . . . . 1 Unlock Access 1 | . . . . . 1 . . . . . . . . . Seal Access 1 | . . . . . . . . . . . . . . 1 Unauthorized Hacks 2 | . 1 . . . . . . . . . . . . 1 Terminals 1 | . 1 . . . . . . . . . . . . . Assimilate 1 | . 1 . . . . . . . . . . . . . Fabricators 1 | . . . . . . . . . . . . . . 1 Overload 1 | . . . . . . . . . . . . . . 1 Repair Stations . | . . . . . . . . . . . . . . . Recycling Units . | . . . . . . . . . . . . . . . Scanalyzers . | . . . . . . . . . . . . . . . Garrison Access . | . . . . . . . . . . . . . . . Data Cores Recovered . | . . . . . . . . . . . . . . . Used . | . . . . . . . . . . . . . . . Hacking Detections 3 | . . . . . . 1 . . . . . 1 . 1 Full Trace Events 2 | . . . . . . . . . . . . 1 . 1 Feedback Events . | . . . . . . . . . . . . . . . Feedback Blocked . | . . . . . . . . . . . . . . . Robot Schematics Acquired . | . . . . . . . . . . . . . . . Robots Built . | . . . . . . . . . . . . . . . Authchips . | . . . . . . . . . . . . . . . Time . | . . . . . . . . . . . . . . . Total Robot Build Rating . | . . . . . . . . . . . . . . . Part Schematics Acquired . | . . . . . . . . . . . . . . . Parts Built . | . . . . . . . . . . . . . . . Authchips . | . . . . . . . . . . . . . . . Time . | . . . . . . . . . . . . . . . Total Part Build Rating . | . . . . . . . . . . . . . . . Part Studies Acquired . | . . . . . . . . . . . . . . . Parts Repaired . | . . . . . . . . . . . . . . . Time . | . . . . . . . . . . . . . . . Parts Recycled . | . . . . . . . . . . . . . . . Recycled Matter . | . . . . . . . . . . . . . . . Retrieved Matter . | . . . . . . . . . . . . . . . Retrieved Components . | . . . . . . . . . . . . . . . Parts Scanalyzed . | . . . . . . . . . . . . . . . Part Schematics Acquired . | . . . . . . . . . . . . . . . Parts Damaged . | . . . . . . . . . . . . . . . Bothacking | -11 -10 -10 -10 -9 -8 -8 -7 -7 -6 -6 -6 -5 -5 -4 ------------ Run | Yrd Mat Min Exi Min Mat Gar Fac DSF Fac Low Low Fac DSF Fac Used RIF Installer . | . . . . . . . . . . . . . . . Robots Hacked . | . . . . . . . . . . . . . . . Non-combat . | . . . . . . . . . . . . . . . Combat . | . . . . . . . . . . . . . . . Robot Hacks Applied . | . . . . . . . . . . . . . . . Relay Couplers Released . | . . . . . . . . . . . . . . . Fabnet Peak Effective % . | . . . . . . . . . . . . . . . Robots Rewired . | . . . . . . . . . . . . . . . Allies Hacked . | . . . . . . . . . . . . . . . Hacks Repelled . | . . . . . . . . . . . . . . . Allies | -11 -10 -10 -10 -9 -8 -8 -7 -7 -6 -6 -6 -5 -5 -4 -------- Run | Yrd Mat Min Exi Min Mat Gar Fac DSF Fac Low Low Fac DSF Fac Total Allies 3 | . 1 . . 2 . . . . . . . . . . Largest Group 2 | . 1 . . 2 . . . . . . . . . . Highest-Rated Group 41 | . 10 . . 41 . . . . . . . . . . Highest-Rated Ally 31 | . 10 . . 31 . . . . . . . . . . Total Orders . | . . . . . . . . . . . . . . . Ally Attacks 12 | . . . . 12 . . . . . . . . . . Total Damage 199 | . . . . 199 . . . . . . . . . . Kills 2 | . . . . 2 . . . . . . . . . . Allies Corrupted . | . . . . . . . . . . . . . . . Allies Melted . | . . . . . . . . . . . . . . . Intel | -11 -10 -10 -10 -9 -8 -8 -7 -7 -6 -6 -6 -5 -5 -4 ------- Run | Yrd Mat Min Exi Min Mat Gar Fac DSF Fac Low Low Fac DSF Fac Active Infowar (turns) . | . . . . . . . . . . . . . . . Robot Analysis Total . | . . . . . . . . . . . . . . . Derelict Logs Recovered 7 | . . 1 . 3 . . . . . 1 2 . . . Drone Launches . | . . . . . . . . . . . . . . . Drone Recoveries . | . . . . . . . . . . . . . . . Exploration | -11 -10 -10 -10 -9 -8 -8 -7 -7 -6 -6 -6 -5 -5 -4 ------------- Run | Yrd Mat Min Exi Min Mat Gar Fac DSF Fac Low Low Fac DSF Fac Turns Passed 1645 | 9 95 122 80 144 106 278 4 19 143 145 94 63 15 328 Spaces Moved 3085 | 18 189 243 160 262 167 474 7 37 271 290 188 126 30 623 Core 3085 | 18 189 243 160 262 167 474 7 37 271 290 188 126 30 623 Treads . | . . . . . . . . . . . . . . . Legs . | . . . . . . . . . . . . . . . Wheels . | . . . . . . . . . . . . . . . Hover . | . . . . . . . . . . . . . . . Flight . | . . . . . . . . . . . . . . . Fastest Speed 50 | 50 50 50 50 50 50 50 50 50 50 50 50 50 50 50 Average Speed 50 | 50 50 50 50 50 50 50 50 50 50 50 50 50 50 50 Slowest Speed 50 | 50 50 50 50 50 50 50 50 50 50 50 50 50 50 50 Overloaded Moves . | . . . . . . . . . . . . . . . Propulsion Burnouts . | . . . . . . . . . . . . . . . Robots Hopped . | . . . . . . . . . . . . . . . Potential Cave-ins . | . . . . . . . . . . . . . . . Cave-ins Triggered . | . . . . . . . . . . . . . . . Exploration Rate (%) 31 | 3 41 69 37 77 16 49 1 42 8 41 26 3 34 19 Regions Visited 14 Branch Regions 5 Pre-discovered Areas 2 | . . . . 1 . . . . . 1 . . . . Known Exits Taken 3 | . . . . . 1 . 1 . . . . 1 . . Unknown Exits Taken 8 | 1 1 1 1 1 . . . . 1 1 1 . . . Scrap Searched . | . . . . . . . . . . . . . . . Spaces Dug . | . . . . . . . . . . . . . . . Terrain Destroyed . | . . . . . . . . . . . . . . . Melee . | . . . . . . . . . . . . . . . Projectile . | . . . . . . . . . . . . . . . AOE . | . . . . . . . . . . . . . . . Terrain Rammed . | . . . . . . . . . . . . . . . Walls Destroyed . | . . . . . . . . . . . . . . . Machines Disabled . | . . . . . . . . . . . . . . . Actions | -11 -10 -10 -10 -9 -8 -8 -7 -7 -6 -6 -6 -5 -5 -4 --------- Run | Yrd Mat Min Exi Min Mat Gar Fac DSF Fac Low Low Fac DSF Fac Total 3170 | 17 188 242 159 274 189 512 6 36 278 289 187 125 29 639 Wait 42 | . . . . 13 22 . . . 7 . . . . . Move 3070 | 17 188 242 159 261 167 470 6 36 271 289 187 125 29 623 Hop . | . . . . . . . . . . . . . . . Pick Up . | . . . . . . . . . . . . . . . Fast Attach . | . . . . . . . . . . . . . . . Attach . | . . . . . . . . . . . . . . . Detach . | . . . . . . . . . . . . . . . Swap . | . . . . . . . . . . . . . . . Drop . | . . . . . . . . . . . . . . . Fire . | . . . . . . . . . . . . . . . Melee . | . . . . . . . . . . . . . . . Ram 16 | . . . . . . . . . . . . . . 16 Kick . | . . . . . . . . . . . . . . . Crush . | . . . . . . . . . . . . . . . Escape Stasis 41 | . . . . . . 41 . . . . . . . . Rewire 1 | . . . . . . 1 . . . . . . . . Trap . | . . . . . . . . . . . . . . . Miscellaneous . | . . . . . . . . . . . . . . . Route ------- -11/Scrapyard -10/Materials (discovered 2 exits: [*Mat] / [*Min]) -10/Mines -10/Exiles -9/Mines -8/Materials -8/Garrison (discovered 3 exits: *Fac x3) -7/Factory (discovered 2 exits: Sto / DSF) -7/DSF -6/Factory -6/Lower Caves -6/Lower Caves -5/Factory (discovered 2 exits: Upp / DSF) -5/DSF -4/Factory History --------- Turn | Location | Event 3 | -11/Scrapyard | Discovered new exit (range 15) 10 | -11/Scrapyard | Entered Materials 48 | -10/Materials | Discovered new exit (range 8) 97 | -10/Materials | Discovered new exit (range 16) 105 | -10/Materials | Entered Mines 169 | -10/Mines | Learned Materials emergency access door positions 179 | -10/Mines | Core integrity fell below 50% 225 | -10/Mines | Deemed a non-threat by the Exiles lab entrance 225 | -10/Mines | Discovered new exit (range 5) 227 | -10/Mines | Entered Exiles 241 | -10/Exiles | Met 8R-AWN 248 | -10/Exiles | Met EX-HEX 263 | -10/Exiles | Met EX-BIN 270 | -10/Exiles | Aligned with FarCom system 270 | -10/Exiles | Given EX-Vault access code 302 | -10/Exiles | Discovered new exit (range 14) 305 | -10/Exiles | Build established: Mutant 307 | -10/Exiles | Entered Mines 322 | -9/Mines | Met a Derelict who couldn't figure out how to use a Trap Extractor 387 | -9/Mines | Learned Materials terminal intel 395 | -9/Mines | Learned location of Zion (-7) 445 | -9/Mines | Discovered new exit (range 11) 451 | -9/Mines | Entered Materials 451 | -8/Materials | Evolved 4 slots: Power x4 453 | -8/Materials | Loaded intel: 12 terminal locations 557 | -8/Materials | Identified exit to Garrison 557 | -8/Materials | Entered Garrison 674 | -8/Garrison | Discovered new exit (range 13) 705 | -8/Garrison | Attempted to access garrison exit controls, blocked by remote lockdown 772 | -8/Garrison | Discovered new exit (range 10) 777 | -8/Garrison | Attempted to access garrison exit controls, blocked by remote lockdown 788 | -8/Garrison | Core integrity fell below 50% 809 | -8/Garrison | Triggered checkpoint 812 | -8/Garrison | Triggered checkpoint 815 | -8/Garrison | Core integrity fell below 20% 830 | -8/Garrison | Discovered new exit (range 11) 835 | -8/Garrison | Entered Factory 835 | -7/Factory | Evolved 2 slots: Power x2 836 | -7/Factory | Identified exit to Storage 838 | -7/Factory | Identified exit to DSF 839 | -7/Factory | Entered DSF 850 | -7/DSF | Discovered new exit (range 15) 858 | -7/DSF | Additional patrols routed to DSF 858 | -7/DSF | Entered Factory 858 | -6/Factory | Evolved 2 slots: Power x2 994 | -6/Factory | Discovered new exit (range 15) 1001 | -6/Factory | Entered Lower Caves 1005 | -6/Lower Caves | Encountered a Warlord checkpoint 1092 | -6/Lower Caves | Spotted B-75 Beast 1141 | -6/Lower Caves | Discovered new exit (range 5) 1145 | -6/Lower Caves | Learned location of Extension (-5) 1146 | -6/Lower Caves | Entered another Lower Caves area 1204 | -6/Lower Caves | Attracted the attention of an 0b10 checkpoint 1206 | -6/Lower Caves | Learned Factory security intel 1235 | -6/Lower Caves | Discovered new exit (range 11) 1240 | -6/Lower Caves | Entered Factory 1240 | -5/Factory | Evolved 2 slots: Power x2 1241 | -5/Factory | Identified exit to Upper Caves 1303 | -5/Factory | Identified exit to DSF 1303 | -5/Factory | Entered DSF 1311 | -5/DSF | Discovered new exit (range 15) 1318 | -5/DSF | Entered Factory 1318 | -4/Factory | Evolved 2 slots: Power x2 1564 | -4/Factory | Core integrity fell below 50% 1632 | -4/Factory | Core integrity fell below 20% 1646 | -4/Factory | Destroyed by S-27 Virus with Autogun Last Messages --------------- 01534_ Penetrated by Slug. 01554_ Slammed into K-01 Serf. 01556_ Triggered Ambush Trap. 01556_ B-60 Warrior emerges from a hatch in the floor. 01556_ S-27 Virus emerges from a hatch in the floor. 01556_ G-67 Veteran emerges from a hatch in the floor. 01559_ Slammed into G-67 Veteran. 01559_ Destabilizing: System corrupted (+2). 01560_ GP5B=Q9GDD1O %HO 01583_ System corrupted: Matter fused (-5). 01586_ ALERT: Potential suspicious activity detected, Programmers report to Factory Zone 3L. 01589_ K-01 Serf collects debris. 01627_ Penetrated by Slug. 01629_ Slug penetrates Wall. 01631_ Penetrated by Slug. 01631_ Slug penetrates Wall. 01631_ Penetrated by Slug. 01641_ DUK:XZR5I0ZKXJ&EDONZH0X Map ----- +----------------------------------------------------+ | ?????????????????????????????????????????????????? | | ?????????????????????????????????????????????????? | | ?????????????????????????????????????????????????? | | ?????????????????????????????????????????????????? | | ?????????????????????????????????????????????????? | | ?????????????????????????????????????????????????? | | ?????????????????????????????????????????????????? | | ?????????????????????????????????????????????????? | | ?????????????????????????????????????????????????? | | ?????????????????????????????????????????????????? | | ?????????????????????????????????????????????????? | | ?????????????????????????????????????????????????? | | ?????????????????????????????????????????????????? | | ?????????????????????????????????????????????????? | | ?????????????????????????????????????????????????? | | ?????????????????????????????????????????????????? | | ?????????????????????????????????????????????????? | | ?????????????????????????????????????????????????? | | ?????????????????????????????????????????????????? | | ?????????????????????????????????????????????????? | | ?????????????????????????????????????????????????? | | ?????????????????????????????????????????????????? | | ?????????????????????????????????????????????????? | | ?????????????????" ?????#####????????????????????? | | ???????????????""" ????# ?????????????????????? | | ???????????????" ???#@#??????????????????????? | | ??????????????? ???# #?###########??????????? | | ??????????????"""" !??# #? #??????????? | | ??????????????"""" ??# # #??????????? | | ??????????? """ ?# # #??????????? | | ?????????? s ?# + #??????????? | | ?????????? s s ##s# o #??????????? | | ?????????? s # #??????????? | | ??????????????# #? #??o???????? | | ??????????????# #?###########??????????? | | ??????????????# #??????????????????????? | | ??????????????# ######### #??????????????????????? | | ????????????????????????# #??????????????????????? | | ????????????????????????# #??????????????????????? | | ????????????????????????# #??????????????????????? | | ?????????#???? ?????????# #??????????????????????? | | ???????? #????"?????????# #??????????????????????? | | ???????? #????" ????????# #??????????????????????? | | ???????? #????" ????????# #??????????????????????? | | """??"" #???"" ????????# #??????????????????????? | | """ """ #??? ??? #?# #??????????????????????? | | #?"""" """" #?# #??????????????????????? | | """ """ # """" """" [#?# #??????????????????????? | | """ """ # """" """" #?# #??????????????????????? | | ?""" """ #??""" """" ???# #??????????????????????? | +----------------------------------------------------+ Best States ------------- Heat Dissipation 43 Energy Generation 5 Energy Capacity 100 Matter Stores 300 Matter Capacity 300 Sight Range 16 Terrain Scan Density 10 Evasion (%) 50 Item Schematics ----------------- None Robot Schematics ------------------ None Fabricated ------------ Nothing Repaired ---------- Nothing Studied --------- None Alien Tech Used ----------------- None Achievements -------------- None Challenges ------------ None Game ------ Seed ProtonHelicalCutter Manual? 0 Play Time 00:21:41 Cumulative 126.8 hours Start 2026.02.01 @ 00:57:38 End 2026.02.01 @ 01:15:23 Sessions 1 Manual Loads 0 Difficulty Rogue Special Mode None Game No. 64 Rogue 64 Adventurer 0 Explorer 0 Win Type - Total 6 Types 5/0/1/0/0/0/0/0/0/0 Lore% 59 Gallery% 63 Achievement% 56 Wizard Run 0 Options --------- Layout 0 ASCII 0 Keyboard 1 Movement Arrows Keybinds 0 Fullscreen 1 Font 18/SmallcapsGlow Map View 76x50 Zoom Use 0% Tactical HUD 1 Map Filters NONE Filters NONE Steam 1 RUN: bd16efa4-9ada-461b-acd6-308678e619ca